Cogmind - Beta 11 @@@ ROGUE MODE // 2022.04.07 @ 19:33:15 Player: Ahren Result: Destroyed by as-06651 with Assembled Blade Performance ------------- Evolutions (0) 0 Regions Visited (2) 400 Robots Destroyed (17) 85 Value Destroyed (286) 286 Prototype IDs (0) 0 Alien Tech Used (0) 0 Bonus (0) 0 TOTAL SCORE: 771 Bonus ------- None Cogmind --------- Core Integrity 0/250 Matter 300/300 Energy 99/100 System Corruption 0% Temperature Warm (179) Movement Core (150) Ox2 Location -10/Mines Parts ------- > --- POWER (1) -------- (None) > --- PROPULSION (2) --- (None) > --- UTILITY (2) ------ Small Storage Unit Targeting Computer > --- WEAPON (2) ------- Medium Laser > --- INVENTORY (8) ---- Aluminum Leg Aluminum Leg Peak State ------------ > --- POWER ------------ Ion Engine > --- PROPULSION ------- Compact Wheel Compact Wheel > --- UTILITY ---------- Small Storage Unit Improved Terrain Scanner > --- WEAPON ----------- Assault Rifle Assault Rifle > --- INVENTORY -------- Light Ion Engine Aluminum Leg Aluminum Leg Compact Wheel Light Assault Rifle [Rating: 9] Favorites ----------- Power Ion Engine Engine Ion Engine Power Core Light Nuclear Core Propulsion Compact Wheel Wheel Compact Wheel Utility Small Storage Unit Device Improved Terrain Scanner Storage Small Storage Unit Processor Targeting Computer Weapon Assault Rifle Energy Gun Medium Laser Energy Cannon Beam Cannon Ballistic Gun Assault Rifle Build | -11 -10 -10 ------- Run | Scr Mat Min Slots Evolved . | . . . Power . | . . . Propulsion . | . . . Utility . | . . . Weapon . | . . . Parts Attached 17 | 7 9 1 Power 3 | 1 1 1 Engine 2 | 1 1 . Core 1 | . . 1 Reactor . | . . . Propulsion 5 | 2 3 . Treads . | . . . Leg . | . . . Wheel 5 | 2 3 . Hover . | . . . Flight . | . . . Utility 3 | 2 1 . Device 1 | 1 . . Storage 1 | 1 . . Processor 1 | . 1 . Hackware . | . . . Protection . | . . . Artifact . | . . . Weapon 6 | 2 4 . Energy Gun 1 | . 1 . Energy Cannon 1 | . 1 . Ballistic Gun 4 | 2 2 . Ballistic Cannon . | . . . Launcher . | . . . Special Weapon . | . . . Impact Weapon . | . . . Slashing Weapon . | . . . Piercing Weapon . | . . . Special Melee Weapon . | . . . Unidentified Prototypes . | . . . Parts Lost 8 | . 3 5 Power 2 | . . 2 Propulsion 3 | . 1 2 Utility . | . . . Weapon 3 | . 2 1 Highest Loss Streak 8 | . 3 8 To Critical Strikes . | . . . Average Slot Usage (%) 95 | . 95 85 Engine 12 | . 12 . Wheel 26 | . 26 28 Storage 14 | . 14 14 Processor 13 | . 13 14 Energy Gun 1 | . 1 14 Energy Cannon 7 | . 7 . Ballistic Gun 18 | . 18 14 Naked Turns . | . . . Heaviest Build 15 | 15 15 14 Greatest Support 32 | 32 32 32 Greatest Overweight (x) 1 | 1 . . Average Overweight (x) . | . . . Largest Inventory Capacity 8 | 8 8 8 Average Capacity 7 | 7 8 8 Most Carried 5 | 5 5 3 Average Carried 4 | 4 4 2 Final Capacity 8 | 8 8 8 Final Carried 5 | 5 2 2 Class Distribution -------------------- 100% | Mutant Dominant Class ---------------- Mutant | -10/Materials Mutant | -10/Mines Resources | -11 -10 -10 ----------- Run | Scr Mat Min Matter Collected 530 | 351 164 15 Remotely . | . . . Salvage Created 568 | 195 373 . Parts 32 | 14 18 . Haulers Intercepted . | . . . Recyclers Shooed . | . . . Parts Field Recycled . | . . . Retrieved Matter . | . . . Parts Self-Destructed . | . . . Prevented . | . . . Kills | -11 -10 -10 ------- Run | Scr Mat Min Combat Hostiles Destroyed 8 | . 8 . Guns 1 | . 1 . Cannons 7 | . 7 . Classes Destroyed 5 | 3 2 . Worker 3 | 2 1 . Tunneler 4 | 4 . . Recycler 2 | 1 1 . Swarmer 3 | . 3 . Grunt 5 | . 5 . Best Kill Streak 5 | 3 5 . Combat Bots Only 5 | . 5 . Max Kills in Single Turn 2 | 1 2 . Gunslinging . | . . . Exploded . | . . . Melee . | . . . Uniques/NPCs Destroyed . | . . . Combat | -11 -10 -10 -------- Run | Scr Mat Min Damage Taken 1019 | . 575 444 Core 261 | . 126 135 Absorbed by Shields . | . . . Regen/Repaired (Parts) 109 | . 109 . Core Remaining (%) 100 | 100 . . Volleys Fired 39 | 14 22 3 Largest 2 | 2 2 2 Hottest 80 | 40 80 70 Shots Fired 77 | 27 44 6 Gun 63 | 27 30 6 Cannon 14 | . 14 . Launcher . | . . . Special . | . . . Kinetic 60 | 27 30 3 Thermal 17 | . 14 3 Explosive . | . . . Electromagnetic . | . . . Robot Hit Streak 12 | 10 12 5 Robot Miss Streak 3 | 3 3 1 Penetration Max . | . . . Secondary Targets . | . . . Shots Hit Robots 51 | 17 29 5 Core Hits 21 | 8 11 2 Critical Kills . | . . . Critical Parts Destroyed . | . . . Critical Strikes 1 | . . 1 Burn 1 | . . 1 Melee Attacks . | . . . Impact . | . . . Slashing . | . . . Piercing . | . . . Sneak Attacks . | . . . Combat Hostiles . | . . . Follow-up Attacks . | . . . Damage Inflicted 745 | 223 445 77 Guns 552 | 223 252 77 Cannons 193 | . 193 . Explosions . | . . . Melee . | . . . Ramming . | . . . Kinetic 514 | 223 252 39 Thermal 231 | . 193 38 Explosive . | . . . Electromagnetic . | . . . Impact . | . . . Slashing . | . . . Piercing . | . . . Highest Corruption . | . . . Average Corruption . | . . . Corruption Purged . | . . . Corruption Blocked . | . . . Overload Shots . | . . . Overflow Damage 29 | . 29 . Projectiles 12 | . 12 . Explosions 17 | . 17 . Melee . | . . . Knockbacks . | . . . Impact . | . . . Kinetic . | . . . Secondary . | . . . Self-Inflicted Damage 121 | . 121 . Shots 2 | . 2 . Rammed . | . . . Targets Rammed . | . . . Kicked . | . . . Crushed . | . . . Highest Temperature 240 | 6 240 159 Average Temperature 81 | 6 87 58 Received Heat Transfer 468 | . 210 258 Siege Activations . | . . . Robots Corrupted . | . . . Combat Hostiles . | . . . Parts Fried . | . . . Impact Corruptions . | . . . Robots Melted . | . . . Combat Hostiles . | . . . Parts Melted . | . . . Heat Transferred 592 | . 407 185 Parts Sabotaged . | . . . Parts Stolen . | . . . Parts Stripped . | . . . Power Chain Reactions . | . . . Missiles Intercepted . | . . . Alert | -11 -10 -10 ------- Run | Scr Mat Min Peak Influence 350 | 35 350 25 Initial 25 | . 22 25 Average 61 | 12 83 16 Maximum Alert Level 1 | . 1 . Low Security (%) 96 | 100 95 100 Level 1 3 | . 5 . Level 2 . | . . . Level 3 . | . . . Level 4 . | . . . Level 5 . | . . . High Security . | . . . Max Security . | . . . Squads Dispatched 3 | . 3 . Investigation 1 | . 1 . Extermination . | . . . Reinforcement 2 | . 2 . Assault . | . . . Garrison . | . . . Intercept . | . . . Searches Triggered . | . . . Construction Impeded . | . . . Haulers Reinforced . | . . . Active Scanning Responses . | . . . Cargo Convoy Interrupts . | . . . Stealth | -11 -10 -10 --------- Run | Scr Mat Min Distress Signals 1 | . 1 . Communications Jammed . | . . . Distress Signals . | . . . Times Spotted 29 | . 12 17 Peak Tracking Total 22 | . 8 22 Tactical Retreats . | . . . Traps | -11 -10 -10 ------- Run | Scr Mat Min Traps Triggered . | . . . Indirectly . | . . . Trap Hack Attempts . | . . . Triggered . | . . . Disarmed . | . . . Reprogrammed . | . . . Reused . | . . . Traps Extracted . | . . . Installed . | . . . Triggered . | . . . Machines | -11 -10 -10 ---------- Run | Scr Mat Min Machines Disabled 3 | . 3 . Max in Single Turn 3 | . 3 . Machines Sabotaged . | . . . Garrisons Compromised . | . . . Overloaded Fab Kills . | . . . Hacking | -11 -10 -10 --------- Run | Scr Mat Min Machines Accessed 2 | . 2 . Terminals 1 | . 1 . Fabricators . | . . . Repair Stations 1 | . 1 . Recycling Units . | . . . Scanalyzers . | . . . Garrison Access . | . . . Total Hacks 10 | . 10 . Successful 9 | . 9 . Failed 1 | . 1 . Catastrophic . | . . . Database Lockouts . | . . . Manual 2 | . 2 . Terminals 3 | . 3 . Fabricators . | . . . Repair Stations 7 | . 7 . Recycling Units . | . . . Scanalyzers . | . . . Garrison Access . | . . . Terminal Hacks 3 | . 3 . Alert Level 1 | . 1 . Unreport Threat 2 | . 2 . Fabricator Hacks . | . . . Repair Station Hacks 6 | . 6 . Scan Component 3 | . 3 . Repair 3 | . 3 . Recycling Unit Hacks . | . . . Scanalyzer . | . . . Garrison Access Hacks . | . . . Unauthorized Hacks . | . . . Terminals . | . . . Fabricators . | . . . Repair Stations . | . . . Recycling Units . | . . . Scanalyzers . | . . . Garrison Access . | . . . Data Cores Recovered . | . . . Used . | . . . Hacking Detections 2 | . 2 . Full Trace Events 1 | . 1 . Feedback Events . | . . . Feedback Blocked . | . . . Robot Schematics Acquired . | . . . Robots Built . | . . . Authchips . | . . . Time . | . . . Total Robot Build Rating . | . . . Part Schematics Acquired . | . . . Parts Built . | . . . Authchips . | . . . Time . | . . . Total Part Build Rating . | . . . Parts Repaired 3 | . 3 . Time 78 | . 78 . Parts Recycled . | . . . Recycled Matter . | . . . Retrieved Matter . | . . . Retrieved Components . | . . . Parts Scanalyzed . | . . . Part Schematics Acquired . | . . . Parts Damaged . | . . . Bothacking | -11 -10 -10 ------------ Run | Scr Mat Min Used RIF Installer . | . . . Robots Hacked . | . . . Non-combat . | . . . Combat . | . . . Robot Hacks Applied . | . . . Relay Couplers Released . | . . . Fabnet Peak Effective % . | . . . Robots Rewired . | . . . Allies Hacked . | . . . Hacks Repelled . | . . . Allies | -11 -10 -10 -------- Run | Scr Mat Min Total Allies . | . . . Largest Group . | . . . Highest-Rated Group . | . . . Highest-Rated Ally . | . . . Total Orders . | . . . Ally Attacks . | . . . Total Damage . | . . . Kills . | . . . Allies Corrupted . | . . . Allies Melted . | . . . Intel | -11 -10 -10 ------- Run | Scr Mat Min Robot Analysis Total . | . . . Derelict Logs Recovered . | . . . Drone Launches . | . . . Drone Recoveries . | . . . Exploration | -11 -10 -10 ------------- Run | Scr Mat Min Turns Passed 442 | 129 300 13 Spaces Moved 189 | 71 115 3 Core 2 | 2 . . Treads . | . . . Legs . | . . . Wheels 187 | 69 115 3 Hover . | . . . Flight . | . . . Fastest Speed 50 | 50 100 100 Average Speed 99 | 99 100 100 Slowest Speed 100 | 100 100 100 Overloaded Moves . | . . . Propulsion Burnouts . | . . . Robots Hopped . | . . . Cave-ins Triggered . | . . . Exploration Rate (%) 11 | 4 25 4 Regions Visited 2 Branch Regions 1 Pre-discovered Areas . | . . . Known Exits Taken . | . . . Unknown Exits Taken 2 | 1 1 . Scrap Searched . | . . . Spaces Dug . | . . . Terrain Destroyed 33 | . 33 . Melee . | . . . Projectile . | . . . AOE 33 | . 33 . Terrain Rammed . | . . . Walls Destroyed . | . . . Machines Disabled . | . . . Actions | -11 -10 -10 --------- Run | Scr Mat Min Total 361 | 99 254 8 Wait 106 | 2 104 . Move 187 | 70 114 3 Hop . | . . . Pick Up 9 | 6 2 1 Fast Attach 10 | 6 4 . Attach 5 | 1 3 1 Detach . | . . . Swap 2 | . 2 . Drop 3 | . 3 . Fire 39 | 14 22 3 Melee . | . . . Ram . | . . . Kick . | . . . Crush . | . . . Escape Stasis . | . . . Rewire . | . . . Trap . | . . . Miscellaneous . | . . . Route ------- -11/Scrapyard -10/Materials -10/Mines History --------- Turn | Location | Event 2 | -11/Scrapyard | Met Revision 17 24 | -11/Scrapyard | Discovered new exit (range 14) 130 | -11/Scrapyard | Entered Materials 301 | -10/Materials | Build established: Mutant 310 | -10/Materials | Repaired Com. Wheel 338 | -10/Materials | Repaired Assault Rifle 365 | -10/Materials | Repaired Ion Engine 407 | -10/Materials | Discovered new exit (range 13) 430 | -10/Materials | Entered Mines 431 | -10/Mines | Assembled infested the area 431 | -10/Mines | Core integrity fell below 50% 436 | -10/Mines | Assisted by a Guerilla fighting off Assembled 442 | -10/Mines | Core integrity fell below 20% 443 | -10/Mines | Destroyed by as-06651 with Assembled Blade Last Messages --------------- 00434_ as-32007 destroyed. 00435_ G-34 Mercenary destroyed. 00435_ HV Slug penetrates as-55957. 00435_ as-55957 destroyed. 00435_ as-54883 destroyed. 00435_ Acquired Lgt. Nuclear Core. 00436_ A derelict emerges from the shadows: "You need to get out of here! I've been tracking a group of Assembled to figure out where they're coming from, and they're closing on this area, come on!" 00437_ Ion Engine destroyed. 00437_ as-10688 suffers critical hit (Destroy). 00437_ as-10688 destroyed. 00439_ Lgt. Nuclear Core destroyed. 00439_ as-60641 suffers critical hit (Destroy). 00439_ as-60641 destroyed. 00440_ Acquired 15 matter. 00441_ Com. Wheel destroyed. 00442_ 8M-MS5(h) destroyed. 00443_ Assault Rifle destroyed. 00443_ Com. Wheel destroyed. Map ----- +----------------------------------------------------+ | | | | | ???????????????????????????????????? | | ???????????????????????????????????? | | ???????????????????????????????????? | | ???????????????????????????????????? | | ???????????????????????????????????? | | ???????????????????????????????????? | | ???????????????????????????????????? | | ???????? ?????????????????????????? | | ?????? ?????????????????????????? | | ????? ?????????????????????????? | | ????? ?????????????????????????? | | ????? ?????????????????????????? | | ?????? #????????????????????????? | | ?????? #???????????????????????? | | ??????? ???????????????????????? | | ??????? ???????????????????????? | | ???????? ???????????????????????? | | ???????? ???????????????????????? | | ???????##a% ???????????????????????? | | ????????;aa#???????????????????????? | | ????????#%a#???????????????????????? | | ?????####%%##??????????????????????? | | ?????# aaa%#??????????????????????? | | ?????# *%%@#??????????????????????? | | ?????# aa=#??????????????????????? | | ?????# #??????????????????????? | | ?????# #??????????????????????? | | ?????########??????????????????????? | | ???????????????????????????????????? | | ???????????????????????????????????? | | ???????????????????????????????????? | | ???????????????????????????????????? | | ???????????????????????????????????? | | ???????????????????????????????????? | | ???????????????????????????????????? | | ???????????????????????????????????? | | ???????????????????????????????????? | | ???????????????????????????????????? | | ???????????????????????????????????? | | ???????????????????????????????????? | | ???????????????????????????????????? | | ???????????????????????????????????? | | ???????????????????????????????????? | | ???????????????????????????????????? | | ???????????????????????????????????? | | ???????????????????????????????????? | | ???????????????????????????????????? | | ???????????????????????????????????? | +----------------------------------------------------+ Best States ------------- Heat Dissipation 25 Energy Generation 10 Energy Capacity 250 Matter Stores 300 Matter Capacity 300 Sight Range 16 Terrain Scan Range 16 Terrain Scan Density 10 Evasion (%) 40 Targeting Accuracy 5 Item Schematics ----------------- None Robot Schematics ------------------ None Fabricated ------------ Nothing Alien Tech Used ----------------- None Achievements -------------- None Challenges ------------ None Game ------ Seed PortableAngularAirjet Manual? 0 Play Time 00:08:52 Cumulative 19.3 hours Start 2022.04.07 @ 19:24:18 End 2022.04.07 @ 19:33:15 Sessions 1 Manual Loads 0 Difficulty Rogue Special Mode None Game No. 16 Rogue 16 Adventurer 0 Explorer 0 Win Type - Total 0 Types 0/0/0/0/0/0/0/0/0 Lore% 19 Gallery% 28 Achievement% 25 Wizard Run 0 Options --------- ASCII 0 Keyboard 0 Movement Mouse Keybinds 0 Fullscreen 2 Font 24/Smallcaps Map View 76x50 Tactical HUD 1 Map Filters NONE Filters NONE Steam 1 RUN: 88002654-306b-4351-a310-edd61307d062